bitfinex/quotes_ETHUSD_20250806
["timestamp","ask_amount","ask_price","bid_price","bid_amount"]
[1754500847252,11.4125,3655.0,3654.9,0.002]
[1754500847454,14.14847811,3655.0,3654.9,0.002]
[1754500847659,15.59058287,3655.0,3654.9,0.002]
[1754500848977,15.11418287,3655.0,3654.9,0.002]
[1754500849585,12.01418287,3655.0,3654.9,0.002]
[1754500849790,9.27820476,3655.0,3654.9,0.002]
[1754500849990,12.01418287,3655.0,3654.9,0.002]
[1754500850370,12.49058287,3655.0,3654.9,0.002]
[1754500852846,9.27820476,3655.0,3654.9,0.002]
[1754500853193,12.01418287,3655.0,3654.9,0.002]
[1754500853692,15.11418287,3655.0,3654.9,0.002]
[1754500853893,7.3048,3655.0,3654.9,0.4545]
[1754500854191,7.7635,3655.0,3654.9,0.002]
[1754500855409,7.3048,3655.0,3654.9,0.4545]
[1754500856364,10.49947811,3655.0,3654.9,0.002]
[1754500856584,12.6831096,3655.0,3654.9,0.002]
[1754500856783,13.1595096,3655.0,3654.9,0.002]
[1754500857158,12.6831096,3655.0,3654.9,0.002]
[1754500857695,5.77913149,3655.0,3654.9,0.002]
[1754500857892,3.0,3655.0,3654.9,0.4545]
[1754500858167,3.1368,3655.0,3654.9,0.4545]
[1754500858369,7.167,3655.0,3654.9,3.19055296]
[1754500858599,3.0,3655.0,3654.9,3.19055296]
[1754500858912,4.167,3655.1,3655.0,2.73597811]
[1754500859059,7.167,3655.1,3655.0,2.73597811]
[1754500859264,7.167,3655.1,3655.0,3.18847811]
[1754500859265,3.0,3655.1,3655.0,3.18847811]
[1754500859508,0.001,3655.3,3655.2,2.7358284]
[1754500859803,3.001,3655.3,3655.2,2.7358284]
[1754500859960,0.001,3655.3,3655.2,2.8726284]
[1754500860166,0.001,3655.3,3655.2,3.3251284]
[1754500860762,0.001,3655.3,3655.2,3.7475284]
[1754500860962,0.001,3655.3,3655.2,4.77777244]
[1754500861413,0.001,3655.3,3655.2,4.80513072]
[1754500861591,0.001,3655.3,3655.2,4.77777244]
[1754500862815,1e-08,3655.3,3655.2,4.80513072]
[1754500863113,1e-08,3655.3,3655.2,4.77777244]
[1754500863630,1e-08,3655.3,3655.2,4.80513072]
[1754500863815,0.04,3655.9,3655.8,2.73537939]
[1754500863993,0.04,3655.9,3655.8,7.44946364]
[1754500864198,0.04,3655.9,3655.8,8.47446364]
[1754500864581,1e-08,3655.9,3655.8,8.47446364]
[1754500864796,1e-08,3656.1,3656.0,2.73522975]
[1754500864996,1e-08,3656.1,3656.0,2.87202975]
[1754500865227,1e-08,3656.1,3656.0,4.38392265]
[1754500865521,1e-08,3656.1,3656.0,4.84972265]
[1754500868297,1e-08,3656.1,3656.0,4.42732265]
[1754500868894,1e-08,3656.1,3656.0,4.84972265]
[1754500870499,1e-08,3656.1,3656.0,4.87707494]
[1754500871315,1e-08,3656.1,3656.0,4.84972265]
[1754500871621,1e-08,3656.1,3656.0,4.87707494]
[1754500872631,1e-08,3656.1,3656.0,9.04207494]
[1754500872795,0.04,3656.9,3656.1,2.73508596]
[1754500872994,0.04,3656.9,3656.4,2.87173053]
[1754500873195,0.04,3656.9,3656.4,7.06407983]
[1754500873385,0.04,3656.9,3656.8,2.73463137]
[1754500873586,0.04,3656.9,3656.8,6.92697768]
[1754500873806,0.04,3656.9,3656.8,7.50223137]
[1754500873998,0.04,3656.9,3656.8,7.03643137]
[1754500874205,0.04,3656.9,3656.8,7.50223137]
[1754500874415,0.04,3656.9,3656.8,8.52592569]
[1754500875027,0.04,3656.9,3656.8,8.06012569]
[1754500875327,0.04,3656.9,3656.8,8.52592569]
[1754500875924,0.041,3656.9,3656.8,8.52592569]
[1754500876911,0.041,3656.9,3656.8,8.94832569]
[1754500877509,0.041,3656.9,3656.8,8.52592569]
[1754500881412,0.041,3656.9,3656.8,4.36092569]
[1754500881708,0.041,3656.9,3656.8,8.52492569]
[1754500882549,0.041,3656.9,3656.8,7.03543137]
[1754500882550,1.0096,3656.9,3656.8,7.03543137]
[1754500882898,1.0096,3656.9,3655.4,0.821861]
[1754500882899,1.5596,3656.9,3655.2,2.73576338]
[1754500883100,3.70323238,3656.8,3655.9,2.73524874]
[1754500883304,0.1368,3656.4,3656.0,4.164]
[1754500883541,0.1368,3656.4,3656.0,6.89922837]
[1754500883840,0.9686,3656.3,3656.0,4.164]
[1754500884051,0.4687,3656.2,3656.0,4.164]
[1754500884215,0.4687,3656.1,3655.9,2.87207659]
[1754500884418,0.42396563,3656.4,3656.0,4.173]
[1754500884741,0.42396563,3656.4,3656.1,2.87192361]
[1754500884742,0.4687,3656.3,3656.1,2.87192361]
[1754500884956,0.28716563,3656.4,3656.2,4.172]
[1754500885463,2.73515494,3656.1,3655.1,2.73786544]
[1754500885620,2.73515494,3656.1,3655.4,0.1368]
[1754500885621,2.73534725,3655.9,3655.4,0.1368]
[1754500885826,2.73552308,3655.7,3655.3,0.1368]
[1754500886463,0.9686,3655.6,3655.4,2.73563074]
[1754500886757,0.4687,3655.5,3655.4,2.73565284]
[1754500886973,0.4687,3655.5,3655.3,7.04852452]
[1754500887153,0.1368,3655.8,3655.4,2.73567872]
[1754500887322,0.47399466,3655.8,3655.4,2.73567872]
[1754500887523,0.4999,3655.7,3655.3,4.3128]
[1754500887725,0.4687,3655.6,3655.3,4.3118]
[1754500888039,0.4999,3655.5,3655.3,4.3118]
[1754500888239,0.4999,3655.6,3655.4,2.73567872]
[1754500888427,0.6367,3655.6,3655.4,2.73567872]
[1754500888623,0.6367,3655.6,3655.3,6.91072573]
[1754500888823,0.4687,3655.5,3655.4,2.73567872]
[1754500889157,0.4687,3655.5,3655.3,6.91072316]
[1754500889362,0.6367,3655.6,3655.4,2.73567872]
[1754500889518,0.6367,3655.6,3655.5,2.73560388]
[1754500889923,1.1054,3655.6,3655.3,4.175]
[1754500890140,0.4687,3655.5,3655.3,4.175]
[1754500890342,0.4687,3655.4,3655.3,4.175]
[1754500890840,0.4687,3655.4,3655.3,6.91073342]
[1754500891238,0.4687,3655.4,3655.3,4.175]
[1754500891464,0.9679,3655.4,3655.3,4.175]
[1754500892685,0.9679,3655.4,3655.3,6.91075356]
[1754500892983,0.4687,3655.4,3655.3,4.175]
[1754500893381,0.4687,3655.4,3655.3,6.91075356]
[1754500893784,0.1368,3655.6,3655.4,2.73563556]
[1754500894089,0.4309,3655.5,3655.4,2.73567872]
[1754500894648,0.4309,3655.5,3655.3,6.91074277]
[1754500894853,0.9301,3655.4,3655.3,4.175]
[1754500895593,0.4309,3655.4,3655.3,6.91075356]
[1754500896155,0.4992,3655.8,3655.5,2.73555833]
[1754500896370,0.1368,3655.6,3655.3,4.175]
[1754500896685,0.4309,3655.5,3655.3,6.91070092]
[1754500896846,0.4309,3655.4,3655.3,6.91070092]
[1754500897493,0.4309,3655.4,3655.3,6.91270092]
[1754500897678,0.4992,3655.9,3655.3,4.3138]
[1754500897993,0.1368,3655.7,3655.5,2.73560339]
[1754500898198,0.1368,3655.7,3655.3,6.91273757]
[1754500898368,0.9301,3655.6,3655.3,6.91273757]
[1754500898551,0.4309,3655.5,3655.3,6.91273757]
[1754500898753,0.4992,3655.6,3655.4,2.73563914]
[1754500898947,0.1368,3655.7,3655.5,2.73560388]
[1754500899265,0.1368,3655.7,3655.6,2.73552905]
[1754500899661,0.55,3656.2,3655.6,2.73552905]
[1754500899873,0.1368,3655.9,3655.6,2.73552905]
[1754500900392,0.4309,3655.8,3655.6,2.73552905]
[1754500900601,0.4309,3655.7,3655.6,2.73552905]
[1754500901302,0.4309,3655.7,3655.5,6.91956832]
[1754500901459,0.4309,3655.7,3655.6,2.73552905]
[1754500902303,0.1368,3655.9,3655.7,2.73539352]
[1754500902613,0.5677,3655.9,3655.7,2.73539352]
[1754500902895,0.5677,3655.9,3655.8,2.73537939]
[1754500903100,0.5677,3655.9,3655.7,2.73542244]
[1754500903395,0.5677,3655.9,3655.7,2.73544178]
[1754500903585,7.7477,3655.9,3655.7,3.21051659]
[1754500903789,0.4309,3655.8,3655.5,6.91955663]
[1754500903972,7.6472959,3655.9,3655.6,2.7355277]
[1754500904300,0.4309,3655.8,3655.6,2.7355277]
[1754500904497,7.6472959,3655.9,3655.5,6.91957368]
[1754500904896,8.1464959,3655.9,3655.5,6.91957368]
[1754500905100,3.55,3655.7,3655.3,0.002]
[1754500905402,3.42247872,3655.4,3655.3,0.002]
[1754500905775,3.92167872,3655.4,3655.3,0.002]
[1754500905978,7.02167872,3655.4,3655.3,0.002]
[1754500906306,5.99316536,3655.4,3655.3,0.002]
[1754500906666,6.42406536,3655.4,3655.3,0.002]
[1754500907393,5.92486536,3655.4,3655.3,0.002]
[1754500907910,9.15974408,3655.4,3655.3,0.002]
[1754500908597,5.92486536,3655.4,3655.3,0.002]
[1754500908796,6.42406536,3655.4,3655.3,0.002]
[1754500908996,9.15974408,3655.4,3655.3,0.002]
[1754500909193,13.34074408,3655.4,3655.3,0.002]
[1754500909575,9.15974408,3655.4,3655.3,0.002]
[1754500910511,8.66054408,3655.4,3655.3,0.002]
[1754500910895,5.92486536,3655.4,3655.3,0.002]
[1754500911145,9.67396536,3655.4,3655.3,0.002]
[1754500911407,9.67396536,3655.4,3655.3,0.4771]
[1754500911408,3.1,3655.4,3655.3,0.4771]
[1754500911618,7.3168,3655.5,3655.3,0.4771]
[1754500912317,0.4309,3655.4,3655.3,0.002]
[1754500913815,3.1368,3655.5,3655.3,0.002]
[1754500913979,3.1368,3655.5,3655.3,3.21280898]
[1754500914175,3.1368,3655.5,3655.4,0.4751]
[1754500915518,10.3168,3655.5,3655.3,0.002]
[1754500915671,10.3168,3655.5,3655.3,0.4771]
[1754500915874,10.3168,3655.5,3655.3,0.002]
[1754500916128,10.7477,3655.5,3655.3,0.002]
[1754500916325,10.7477,3655.5,3655.3,0.4771]
[1754500916488,10.3168,3655.5,3655.3,0.4771]
[1754500916689,0.4309,3655.4,3655.3,0.002]
[1754500916889,0.9809,3655.4,3655.3,0.002]
[1754500917217,9.23082971,3655.4,3655.3,0.002]
[1754500917430,9.73002971,3655.4,3655.3,0.002]
[1754500917631,19.41082971,3655.4,3655.3,0.002]
[1754500917828,19.91002971,3655.4,3655.3,0.002]
[1754500919932,22.51082971,3655.4,3655.3,0.002]
[1754500920093,23.01002971,3655.4,3655.3,0.002]
[1754500920295,22.51082971,3655.4,3655.3,0.002]
[1754500920493,23.01002971,3655.4,3655.3,0.002]
[1754500920938,22.51082971,3655.4,3655.3,0.002]
[1754500921498,22.07992971,3655.4,3655.3,0.002]
[1754500922224,22.50812971,3655.4,3655.3,0.002]
[1754500923645,22.07992971,3655.4,3655.3,0.002]
[1754500923833,22.07992971,3655.4,3655.3,0.4832]
[1754500924137,22.50812971,3655.4,3655.3,0.002]
[1754500925235,19.47905099,3655.4,3655.3,0.4832]
[1754500925432,20.87847872,3655.4,3655.3,0.002]
[1754500925935,21.30667872,3655.4,3655.3,0.002]
[1754500926231,21.78347872,3655.4,3655.3,0.002]
[1754500926611,21.30667872,3655.4,3655.3,0.002]
[1754500928017,17.13067872,3655.4,3655.3,0.002]
[1754500928225,23.34098123,3655.4,3655.3,0.002]
[1754500929045,23.81778123,3655.4,3655.3,0.002]
[1754500932042,29.08792809,3655.4,3655.3,0.002]
[1754500932224,32.78612809,3655.4,3655.3,0.002]
[1754500932965,32.35792809,3655.4,3655.3,0.002]
[1754500933121,32.35792809,3655.4,3655.3,0.4832]
[1754500933526,32.35792809,3655.4,3655.3,0.002]
[1754500933727,25.18292809,3655.4,3655.3,0.002]
[1754500933928,29.35892809,3655.4,3655.3,0.4832]
[1754500934127,32.35892809,3655.4,3655.3,0.4832]
[1754500934428,32.78712809,3655.4,3655.3,0.002]
[1754500934657,22.91278123,3655.4,3655.3,0.002]
[1754500935426,23.34098123,3655.4,3655.3,0.002]
[1754500935828,23.81778123,3655.4,3655.3,0.002]
[1754500936199,11.98498123,3655.4,3655.3,0.002]
[1754500936461,16.15998123,3655.4,3655.3,0.002]
[1754500936872,16.63678123,3655.4,3655.3,0.002]
[1754500937645,16.15998123,3655.4,3655.3,0.002]
[1754500938491,16.63678123,3655.4,3655.3,0.002]
[1754500938990,16.15998123,3655.4,3655.3,0.002]
[1754500939587,23.81678123,3655.4,3655.3,0.002]
[1754500941986,23.26678123,3655.4,3655.3,0.002]
[1754500942992,23.81678123,3655.4,3655.3,0.002]
[1754500943787,3.28597811,3655.0,3654.9,0.002]
[1754500943958,18.67796579,3655.0,3654.9,1e-08]
[1754500944287,19.58296579,3655.0,3654.9,1e-08]
[1754500944473,22.68296579,3655.0,3654.9,1e-08]
[1754500945551,23.00698813,3655.0,3654.9,1e-08]
[1754500947093,22.68396579,3655.0,3654.9,1e-08]
[1754500948089,22.20716579,3655.0,3654.9,1e-08]
[1754500948595,18.03316579,3655.0,3654.9,1e-08]
[1754500948791,16.91816579,3655.0,3654.9,0.48120001]
[1754500949101,21.65516579,3655.0,3654.9,1e-08]
[1754500949253,22.20516579,3655.0,3654.9,1e-08]
[1754500949459,23.00598813,3655.0,3654.9,1e-08]
[1754500950156,22.52918813,3655.0,3654.9,1e-08]
[1754500950476,22.20516579,3655.0,3654.9,1e-08]
[1754500951960,18.03316579,3655.0,3654.9,1e-08]
[1754500952160,22.20716579,3655.0,3654.9,1e-08]
[1754500952357,22.69756579,3655.0,3654.9,1e-08]
[1754500952683,22.69756579,3655.0,3654.5,0.002]
[1754500952684,6.28627756,3654.6,3654.5,0.002]
[1754500952870,22.14230221,3654.6,3654.5,0.002]
[1754500953070,23.09480221,3654.6,3654.5,0.002]
[1754500953272,26.19480221,3654.6,3654.5,0.002]
[1754500954298,25.70440221,3654.6,3654.5,0.002]
[1754500954597,28.43306407,3654.6,3654.5,0.002]
[1754500955453,11.70173942,3654.6,3654.5,0.4681]
[1754500955654,5.97307756,3654.6,3654.5,0.9033]
[1754500955971,5.87307756,3654.6,3654.5,0.9033]
[1754500956171,7.3118,3654.6,3654.5,0.9033]
[1754500956499,10.04807756,3654.6,3654.5,0.9033]
[1754500956857,7.3118,3654.6,3654.5,0.9033]
[1754500957060,3.1368,3654.6,3654.5,0.9033]
[1754500957254,4.3118,3654.6,3654.5,0.9033]
[1754500958759,7.3118,3654.6,3654.5,0.9033]
[1754500959184,7.3108,3654.6,3654.5,0.9033]
[1754500959376,3.1368,3654.6,3654.5,0.9033]
[1754500959581,7.3108,3654.6,3654.5,0.9033]
[1754500960382,3.1368,3654.6,3654.5,0.9033]
[1754500960574,7.3108,3654.6,3654.5,0.9033]
[1754500964286,7.3108,3654.6,3654.5,0.002]
[1754500964468,7.3108,3654.6,3654.5,0.4681]
[1754500964998,10.04707756,3654.6,3654.5,0.4681]
[1754500965387,7.3108,3654.6,3654.5,0.4681]
[1754500965787,10.59707756,3654.6,3654.5,0.002]
[1754500966101,10.59707756,3654.6,3654.5,0.4681]
[1754500967009,7.8608,3654.6,3654.5,0.4681]
[1754500967172,7.172,3654.6,3654.5,0.9033]
[1754500970001,7.171,3654.6,3654.5,0.4681]
[1754500972343,7.171,3654.6,3654.5,0.9033]
[1754500973354,9.90727756,3654.6,3654.5,0.4681]
[1754500973803,7.171,3654.6,3654.5,0.4681]
[1754500974147,10.45727756,3654.6,3654.5,0.002]
[1754500974348,13.68770073,3654.6,3654.5,0.002]
[1754500974907,16.78770073,3654.6,3654.5,0.002]
[1754500975322,6.28635244,3654.5,3654.4,1e-08]
[1754500975553,6.2865022,3654.3,3654.2,0.002]
[1754500975728,6.4233022,3654.3,3654.2,0.002]
[1754500975929,16.16280873,3654.3,3654.2,0.002]
[1754500976155,17.11530873,3654.3,3654.2,0.002]
[1754500976913,16.16380873,3654.3,3654.2,0.002]
[1754500977118,13.1453022,3654.3,3654.2,0.4681]
[1754500977440,13.6953022,3654.3,3654.2,0.4681]
[1754500979852,13.6973022,3654.3,3654.2,0.4681]
[1754500980059,10.5973022,3654.3,3654.2,0.4681]
[1754500980461,7.8608,3654.3,3654.2,0.4681]
[1754500980664,3.6868,3654.3,3654.2,0.4681]
[1754500980852,7.8608,3654.3,3654.2,0.4681]
[1754500981221,10.5973022,3654.3,3654.2,0.4681]
[1754500981764,7.8608,3654.3,3654.2,0.4681]
[1754500982266,10.5973022,3654.3,3654.2,0.4681]
[1754500982468,6.4233022,3654.3,3654.2,0.4681]
[1754500982664,10.5973022,3654.3,3654.2,0.4681]
[1754500982869,3.1368,3654.3,3654.2,0.4681]
[1754500983044,10.0463022,3654.3,3654.2,0.4681]
[1754500983735,11.0529022,3654.3,3654.2,0.002]
[1754500984055,11.35298962,3654.3,3654.2,0.002]
[1754500984447,10.89638962,3654.3,3654.2,0.002]
[1754500984647,11.25988742,3654.3,3654.2,0.002]
[1754500984873,13.99638962,3654.3,3654.2,0.4637]
[1754500985166,11.25988742,3654.3,3654.2,0.4637]
[1754500985371,6.7868,3654.3,3654.2,0.4637]
[1754500985673,10.9588,3654.3,3654.2,0.4637]
[1754500986171,6.7868,3654.3,3654.2,0.4637]
[1754500986369,7.8588,3654.3,3654.2,0.4637]
[1754500986575,3.6868,3654.3,3654.2,0.4637]
[1754500986876,7.8588,3654.3,3654.2,0.4637]
[1754500987067,3.1368,3654.3,3654.2,0.9081]
[1754500987240,7.172,3654.3,3654.2,3.64467708]
[1754500987444,3.0,3654.3,3654.2,3.64467708]
[1754500987640,0.1368,3654.5,3654.2,3.64467708]
[1754500987641,0.1368,3654.8,3654.5,2.73631237]
[1754500987973,3.0,3654.6,3654.5,0.4444]
[1754500988662,3.0,3654.6,3654.5,0.4617]
[1754500989475,3.0,3654.6,3654.2,0.6005]
[1754500989774,4.3098,3654.5,3654.3,0.4617]
[1754500990092,7.3098,3654.5,3654.4,0.4617]
[1754500991678,7.3098,3654.5,3654.2,0.002]
[1754500992079,7.3098,3654.5,3654.3,0.4617]
[1754500992373,7.3098,3654.5,3654.4,0.4617]
[1754500994884,0.001,3654.9,3654.8,2.73612783]
[1754500995183,0.001,3654.9,3654.8,3.26588446]
[1754500995384,0.001,3654.9,3654.8,4.1718548]
[1754500996348,0.001,3654.9,3654.8,3.7274548]
[1754500996562,0.001,3654.9,3654.8,0.25601419]
[1754500997288,0.001,3654.9,3654.8,0.71771419]
[1754500998012,0.001,3654.9,3654.8,0.4617]
[1754500998608,0.001,3654.9,3654.6,2.73625125]
[1754500998912,0.001,3654.9,3654.5,2.73632901]
[1754500999093,0.4566,3654.8,3654.5,2.73632901]
[1754500999293,0.001,3654.9,3654.6,2.73627201]
[1754500999470,0.001,3654.9,3654.6,0.4617]
[1754501000408,0.001,3654.9,3654.6,3.19796592]
[1754501000568,0.4576,3654.9,3654.4,0.4617]
[1754501000763,0.4576,3654.9,3654.5,0.4617]
[1754501001063,0.4566,3654.8,3654.5,3.19803997]
[1754501001283,0.001,3654.9,3654.5,3.19803997]
[1754501001507,0.001,3654.9,3654.6,0.4617]
[1754501002032,3.4576,3654.9,3654.3,2.73650064]
[1754501002307,0.001,3654.9,3654.4,3.19812732]
[1754501002495,0.001,3654.9,3654.7,2.73619904]
[1754501002693,0.001,3654.9,3654.8,2.73612783]
[1754501003293,0.001,3654.9,3654.8,3.19782783]
[1754501003607,0.001,3654.9,3654.8,3.64222783]
[1754501003769,0.001,3654.9,3654.8,4.2800716]
[1754501003971,0.001,3654.9,3654.8,3.8356716]
[1754501004515,0.001,3654.9,3654.8,3.19782783]
[1754501004887,0.001,3654.9,3654.8,3.77902783]
[1754501006187,0.001,3654.9,3654.8,0.5985]
[1754501006511,0.001,3654.9,3654.8,3.33462783]
[1754501006915,0.001,3654.9,3654.8,2.73612783]
[1754501007420,0.001,3654.9,3654.8,3.19782783]
[1754501008187,0.001,3654.9,3654.8,4.22511639]
[1754501009514,0.001,3654.9,3654.8,3.19782783]
[1754501010325,0.001,3654.9,3654.7,2.87297394]
[1754501010480,0.001,3654.9,3654.7,0.1368]
[1754501010676,0.4576,3654.9,3654.7,0.1368]
[1754501010882,0.4576,3654.9,3654.6,2.73621525]
[1754501011290,0.4576,3654.9,3654.6,3.22631525]
[1754501011615,0.1368,3654.8,3654.7,0.4901]
[1754501011979,0.1368,3654.8,3654.5,7.42440316]
[1754501012318,0.1368,3654.8,3654.6,0.4901]
[1754501012823,0.1368,3654.8,3654.5,4.198]
[1754501013117,7.18,3654.8,3654.7,3.22630269]
[1754501013301,7.18,3654.8,3654.7,3.36310269]
[1754501014019,7.18,3654.8,3654.7,0.6269]
[1754501014192,7.18,3654.8,3654.7,3.36310269]
[1754501014982,7.18,3654.8,3654.7,0.6269]
[1754501015721,7.18,3654.8,3654.7,3.36310269]
[1754501016924,7.18,3654.8,3654.7,3.61904158]
[1754501017625,7.18,3654.8,3654.7,4.08284158]
[1754501018125,7.18,3654.8,3654.7,4.76410711]
[1754501018892,7.18,3654.8,3654.7,8.95810711]
[1754501019092,7.181,3654.9,3654.8,2.73612783]
[1754501019328,7.181,3654.9,3654.8,0.25593889]
[1754501019827,7.181,3654.9,3654.8,3.48216672]
[1754501021895,7.181,3654.9,3654.8,0.74603889]
[1754501022121,7.181,3654.9,3654.8,0.74626824]
[1754501022535,7.181,3654.9,3654.8,3.48239607]
[1754501023533,7.181,3654.9,3654.8,0.74626824]
[1754501023870,7.181,3654.9,3654.8,0.25616824]
[1754501024632,7.181,3654.9,3654.8,2.99229607]
[1754501024932,7.181,3654.9,3654.8,0.25616824]
[1754501026037,7.181,3654.9,3654.8,2.99229607]
[1754501026532,7.181,3654.9,3654.8,0.25616824]
[1754501026733,7.181,3654.9,3654.8,0.74626824]
[1754501026912,7.181,3654.9,3654.8,3.48239607]
[1754501027723,0.001,3654.9,3654.8,5.0011382]
[1754501027908,0.001,3654.9,3654.8,5.1379382]
[1754501028252,0.001,3654.9,3654.8,4.6741382]
[1754501028407,0.001,3654.9,3654.8,8.8631382]
[1754501029249,0.001,3654.9,3654.8,9.3269382]
[1754501030950,0.001,3654.9,3654.8,9.32709804]
[1754501031916,0.001,3654.9,3654.8,8.86329804]
[1754501039576,0.001,3654.9,3654.8,8.86305081]
[1754501040432,0.001,3654.9,3654.8,7.80810868]
[1754501040832,0.001,3654.9,3654.8,7.31800868]
[1754501041072,0.001,3654.9,3654.8,7.78380868]
[1754501048369,0.001,3654.9,3654.8,8.24560868]
[1754501049164,0.001,3654.9,3654.8,7.78380868]
[1754501049700,0.001,3654.9,3654.8,7.77380868]
[1754501050004,0.001,3654.9,3654.8,8.82501207]
[1754501053684,0.001,3654.9,3654.8,9.28681207]
[1754501055311,0.001,3654.9,3654.8,9.15001207]
[1754501055616,0.001,3654.9,3654.8,9.28681207]
[1754501056317,0.001,3654.9,3654.8,8.82501207]
[1754501057815,0.001,3655.3,3655.2,2.7358284]
[1754501058018,0.001,3655.3,3655.2,16.38719756]
[1754501058173,0.001,3655.3,3655.2,16.75272013]
[1754501058376,0.001,3655.7,3655.6,2.73552905]
[1754501058720,0.001,3655.7,3655.6,16.61762078]
[1754501058893,0.001,3655.7,3655.6,9.28421329]
[1754501060082,0.001,3655.7,3655.6,8.82241329]
[1754501061313,0.001,3655.7,3655.6,9.28421329]
[1754501061620,1e-08,3656.2,3656.1,2.73515494]
[1754501061826,1e-08,3656.2,3656.1,17.32547274]
[1754501061997,1e-08,3656.2,3656.1,18.2257212]
[1754501062196,1e-08,3656.2,3656.1,21.2257212]
[1754501062726,1e-08,3656.5,3656.4,2.73493053]
[1754501063026,1e-08,3656.5,3656.4,7.33119584]
[1754501063325,1e-08,3656.5,3656.4,12.32098432]
[1754501064890,1e-08,3656.5,3656.4,7.68218432]
[1754501065091,1e-08,3656.5,3656.4,12.31998432]
[1754501065818,0.04,3656.9,3656.8,2.73463137]
[1754501065819,1e-08,3656.9,3656.8,2.73463137]
[1754501066126,1e-08,3656.9,3656.8,16.64310457]
[1754501066433,1e-08,3656.9,3656.8,18.22719763]
[1754501067282,1e-08,3656.9,3656.8,21.22719763]
[1754501068107,0.00100001,3656.9,3656.8,21.22719763]
[1754501068731,0.00100001,3656.9,3656.8,21.22619763]
[1754501069409,0.00100001,3656.9,3656.8,20.76639763]
[1754501073630,0.00100001,3656.9,3656.8,20.76450019]
[1754501075340,0.00100001,3656.9,3656.8,16.58650019]
[1754501075525,1e-08,3656.9,3656.8,21.19420019]
[1754501076841,1e-08,3656.9,3656.8,20.76150019]
[1754501077022,1e-08,3656.9,3656.8,20.76050019]
[1754501077841,1e-08,3656.9,3656.8,16.12070019]
[1754501078050,0.43160001,3656.9,3656.8,7.84468931]
[1754501078350,1e-08,3656.9,3656.8,7.84468931]
[1754501078849,1e-08,3656.9,3656.8,7.84368931]
[1754501079346,1e-08,3656.9,3656.8,8.30532243]
[1754501079536,1e-08,3656.9,3656.8,8.73802243]
[1754501080341,0.04,3657.9,3657.8,2.73388375]
[1754501080570,0.04,3657.9,3657.8,7.89712382]
[1754501080747,0.04,3657.9,3657.8,8.03392382]
[1754501080942,0.04,3657.9,3657.8,8.0338037]
[1754501081770,0.04,3657.9,3657.8,7.5728037]
[1754501082159,0.04,3657.9,3657.8,8.0338037]
[1754501083801,0.04,3657.9,3657.8,3.3978037]
[1754501084010,0.9339,3657.9,3657.8,7.5728037]
[1754501084312,0.4716,3657.9,3657.8,7.29841532]
[1754501084517,0.9339,3657.9,3657.8,7.29841532]
[1754501085376,0.4716,3657.9,3657.8,7.29841532]
[1754501085577,0.04,3657.9,3657.8,7.16161532]
[1754501085807,0.04,3657.9,3657.8,8.8489531]
[1754501086017,0.04,3657.9,3657.8,8.3879531]
[1754501086912,0.04,3657.9,3657.8,8.8489531]
[1754501087614,0.4716,3657.9,3657.8,8.3879531]
[1754501088335,0.04,3657.9,3657.8,8.3879531]
[1754501089934,0.04,3657.9,3657.8,8.8489531]
[1754501090135,1e-08,3657.9,3657.8,18.29796398]
[1754501091657,1e-08,3657.9,3657.8,17.83696398]
[1754501091959,1e-08,3657.9,3657.8,8.3889531]
[1754501092163,1e-08,3657.9,3657.8,18.29896398]
[1754501092962,1e-08,3657.9,3657.8,8.3899531]
[1754501093255,0.43160001,3657.9,3657.8,8.3899531]
[1754501093965,1e-08,3657.9,3657.8,18.29996398]
[1754501094265,1e-08,3657.9,3657.8,18.30131872]
[1754501095969,1e-08,3657.9,3657.8,17.84031872]
[1754501096265,0.43160001,3657.9,3657.8,17.84031872]
[1754501097134,0.43160001,3657.9,3657.8,17.84035056]
[1754501098469,1e-08,3657.9,3657.8,4.21533968]
[1754501098657,1e-08,3657.9,3657.8,8.87667851]
[1754501098820,1e-08,3657.9,3657.8,8.38833968]
[1754501099387,0.43160001,3657.9,3657.8,8.38833968]
[1754501100069,1e-08,3657.9,3657.8,8.84933442]
[1754501100838,1e-08,3657.9,3657.8,8.38833442]
[1754501101078,1e-08,3657.9,3657.8,9.74163442]
[1754501101883,1e-08,3657.9,3657.8,8.10564622]
[1754501102092,1e-08,3657.9,3657.8,12.27664622]
[1754501104061,1e-08,3657.9,3657.8,12.73954622]
[1754501104571,1e-08,3657.9,3657.8,11.81784622]
[1754501104775,1e-08,3657.9,3657.8,11.84506474]
[1754501104988,1e-08,3657.9,3657.8,7.21526474]
[1754501105314,0.45730001,3657.9,3657.8,11.38526474]
[1754501105890,1e-08,3657.9,3657.8,11.38526474]
[1754501107312,1e-08,3657.9,3657.8,7.21526474]
[1754501107609,0.45730001,3657.9,3657.8,11.38726474]
[1754501107813,0.45730001,3657.9,3657.8,11.38742563]
[1754501109312,1e-08,3657.9,3657.8,11.38742563]
[1754501109523,1e-08,3657.9,3657.8,21.29523651]
[1754501110586,1e-08,3657.9,3657.8,21.29548511]
[1754501113140,1e-08,3657.9,3657.8,21.29448511]
[1754501113717,1e-08,3657.9,3657.8,21.75738511]
[1754501117117,1e-08,3657.9,3657.8,21.29448511]
[1754501118450,1e-08,3658.3,3658.2,2.73358482]
[1754501118751,1e-08,3658.3,3658.2,7.73211274]
[1754501118912,1e-08,3658.3,3658.2,7.7047769]
[1754501119111,1e-08,3658.3,3658.2,7.8415769]
[1754501119649,0.45730001,3658.3,3658.2,7.84167059]
[1754501119807,1e-08,3658.3,3658.2,7.29493121]
[1754501120851,0.45730001,3658.3,3658.2,7.29493121]
[1754501121948,1e-08,3658.3,3658.2,7.29493121]